[Event "*** Titled Tuesday Blitz"]
[Site "Chess.com"]
[Date "2021.02.09"]
[Round "4"]
[White "1977Ivan"]
[Black "The_Machine04"]
[Result "1-0"]
[WhiteElo "2678"]
[BlackElo "2483"]
[TimeControl "180+1"]
[EndTime "10:39:10 PST"]
[Termination "1977Ivan won by checkmate"]

1. e4 {[%clk 0:03:00.9]} 1... d6 {[%clk 0:02:59.8]} 2. d4 {[%clk 0:03:00.3]}
2... Nf6 {[%clk 0:02:59.5]} 3. Nc3 {[%clk 0:03:00.7]} 3... e5 {[%clk 0:02:59.2]}
4. Nf3 {[%clk 0:02:59.9]} 4... Nbd7 {[%clk 0:02:58.5]} 5. a4 {[%clk 0:03:00.1]}
5... c6 {[%clk 0:02:53.5]} 6. Bc4 {[%clk 0:03:00.3]} 6... Be7 {[%clk 0:02:53.2]}
7. O-O {[%clk 0:02:59.5]} 7... h6 {[%clk 0:02:52.9]} 8. Re1 {[%clk 0:02:58.2]}
8... Qc7 {[%clk 0:02:53.2]} 9. a5 {[%clk 0:02:56.4]} 9... Nf8 {[%clk 0:02:52.4]}
10. d5 {[%clk 0:02:55.4]} 10... Ng6 {[%clk 0:02:48]} 11. a6 {[%clk 0:02:43.5]}
11... b5 {[%clk 0:02:47.6]} 12. Bb3 {[%clk 0:02:43]} 12... b4 {[%clk 0:02:47.2]}
13. Ba4 {[%clk 0:02:43.2]} 13... Bd7 {[%clk 0:02:35.4]} 14. dxc6 {[%clk
0:02:43]} 14... Bxc6 {[%clk 0:02:36.2]} 15. Nd5 {[%clk 0:02:40.8]} 15... Nxd5
{[%clk 0:02:28.9]} 16. Qxd5 {[%clk 0:02:41.7]} 16... Rc8 {[%clk 0:02:28.1]} 17.
Be3 {[%clk 0:02:27.1]} 17... O-O {[%clk 0:02:14.7]} 18. Bxc6 {[%clk 0:02:19.2]}
18... Qxc6 {[%clk 0:02:15.5]} 19. Qxc6 {[%clk 0:02:19.8]} 19... Rxc6 {[%clk
0:02:14.4]} 20. Rec1 {[%clk 0:02:13.3]} 20... Rfc8 {[%clk 0:01:55.9]} 21. g3
{[%clk 0:02:12.9]} 21... Bd8 {[%clk 0:01:55.5]} 22. Ra4 {[%clk 0:02:09.6]} 22...
Bb6 {[%clk 0:01:53.1]} 23. Bxb6 {[%clk 0:02:01.8]} 23... Rxb6 {[%clk 0:01:54]}
24. Ne1 {[%clk 0:02:01.7]} 24... Rc4 {[%clk 0:01:40.5]} 25. f3 {[%clk
0:01:57.5]} 25... Nf8 {[%clk 0:01:40.2]} 26. Nd3 {[%clk 0:01:43.4]} 26... Ne6
{[%clk 0:01:39.8]} 27. b3 {[%clk 0:01:43]} 27... Rc3 {[%clk 0:01:28.9]} 28. Nxb4
{[%clk 0:01:34.5]} 28... Nd4 {[%clk 0:01:26.3]} 29. Rd1 {[%clk 0:01:32.6]} 29...
Nxf3+ {[%clk 0:01:17.1]} 30. Kg2 {[%clk 0:01:31.7]} 30... Nd4 {[%clk 0:01:17.4]}
31. Rd2 {[%clk 0:01:27.1]} 31... Rb5 {[%clk 0:00:55.5]} 32. Nd5 {[%clk
0:01:18.6]} 32... Rcc5 {[%clk 0:00:29.7]} 33. b4 {[%clk 0:01:14.8]} 33... Rc4
{[%clk 0:00:24.6]} 34. c3 {[%clk 0:01:13.2]} 34... Ne6 {[%clk 0:00:20]} 35. h4
{[%clk 0:01:03.8]} 35... Rxe4 {[%clk 0:00:16.8]} 36. Ne7+ {[%clk 0:01:02.2]}
36... Kf8 {[%clk 0:00:16.5]} 37. Nc6 {[%clk 0:01:01.8]} 37... d5 {[%clk
0:00:07.8]} 38. Nxa7 {[%clk 0:01:00.6]} 38... Nc7 {[%clk 0:00:05.3]} 39. Nxb5
{[%clk 0:00:58.8]} 39... Nxb5 {[%clk 0:00:04.8]} 40. a7 {[%clk 0:00:59.1]} 40...
Nxa7 {[%clk 0:00:03.7]} 41. Rxa7 {[%clk 0:01:00]} 41... Re3 {[%clk 0:00:01.5]}
42. Rxd5 {[%clk 0:00:59.4]} 42... Rxc3 {[%clk 0:00:01.3]} 43. Rd8# {[%clk
0:00:59.1]} 1-0

[Event "*** Titled Tuesday Blitz"]
[Site "Chess.com"]
[Date "2021.02.09"]
[Round "4"]
[White "sbouchet"]
[Black "PotapovaM"]
[Result "0-1"]
[WhiteElo "2338"]
[BlackElo "2637"]
[TimeControl "180+1"]
[EndTime "10:39:13 PST"]
[Termination "PotapovaM won on time"]

1. e4 {[%clk 0:03:00.9]} 1... c5 {[%clk 0:02:59.8]} 2. c3 {[%clk 0:03:00.7]}
2... d5 {[%clk 0:03:00]} 3. exd5 {[%clk 0:03:00.9]} 3... Qxd5 {[%clk 0:03:00.9]}
4. d4 {[%clk 0:03:01.3]} 4... Nf6 {[%clk 0:03:01.5]} 5. Nf3 {[%clk 0:03:00.7]}
5... e6 {[%clk 0:03:01.8]} 6. Na3 {[%clk 0:03:00.1]} 6... cxd4 {[%clk
0:03:00.7]} 7. Nb5 {[%clk 0:02:59.9]} 7... Na6 {[%clk 0:02:42.9]} 8. Nbxd4
{[%clk 0:02:34.4]} 8... Be7 {[%clk 0:02:38.6]} 9. Be2 {[%clk 0:02:13]} 9... O-O
{[%clk 0:02:38.1]} 10. O-O {[%clk 0:02:13.5]} 10... Nc5 {[%clk 0:02:36.5]} 11.
b4 {[%clk 0:02:06.2]} 11... Nce4 {[%clk 0:02:36]} 12. Bb2 {[%clk 0:02:06.7]}
12... b6 {[%clk 0:02:28.5]} 13. c4 {[%clk 0:02:01]} 13... Qd6 {[%clk 0:02:18]}
14. a3 {[%clk 0:01:35]} 14... Bb7 {[%clk 0:02:16.8]} 15. Qb3 {[%clk 0:01:34.5]}
15... a6 {[%clk 0:02:06.1]} 16. Rad1 {[%clk 0:01:27.3]} 16... Qc7 {[%clk
0:02:06]} 17. Rfe1 {[%clk 0:01:22.6]} 17... Rfd8 {[%clk 0:02:04.9]} 18. Bd3
{[%clk 0:01:15.7]} 18... Nd6 {[%clk 0:02:04.1]} 19. Ne5 {[%clk 0:01:12.1]} 19...
Rac8 {[%clk 0:01:59.5]} 20. Nxf7 {[%clk 0:00:53.7]} 20... Nxf7 {[%clk
0:01:55.2]} 21. Nxe6 {[%clk 0:00:39.4]} 21... Qc6 {[%clk 0:01:55.2]} 22. f3
{[%clk 0:00:35.7]} 22... Re8 {[%clk 0:01:51.2]} 23. Nd4 {[%clk 0:00:30.1]} 23...
Qc7 {[%clk 0:01:48.6]} 24. Nf5 {[%clk 0:00:29.7]} 24... Bf8 {[%clk 0:01:45]} 25.
Qc3 {[%clk 0:00:23.9]} 25... Qf4 {[%clk 0:01:35.7]} 26. Ng3 {[%clk 0:00:15.5]}
26... a5 {[%clk 0:01:28.8]} 27. Bc1 {[%clk 0:00:14.1]} 27... Qb8 {[%clk
0:01:27.5]} 28. bxa5 {[%clk 0:00:14.4]} 28... bxa5 {[%clk 0:01:25.3]} 29. Qxa5
{[%clk 0:00:13.1]} 29... Bc5+ {[%clk 0:01:21.4]} 30. Kh1 {[%clk 0:00:13]} 30...
Qa8 {[%clk 0:01:21.6]} 31. Qc3 {[%clk 0:00:12.1]} 31... Bxf3 {[%clk 0:01:15.6]}
32. Bxh7+ {[%clk 0:00:07.9]} 32... Nxh7 {[%clk 0:01:15.3]} 33. gxf3 {[%clk
0:00:08.3]} 33... Nf6 {[%clk 0:01:13.3]} 34. Bb2 {[%clk 0:00:06.7]} 34... Qc6
{[%clk 0:01:10.5]} 35. Ne4 {[%clk 0:00:06.6]} 35... Be7 {[%clk 0:01:09.9]} 36.
Rg1 {[%clk 0:00:04.7]} 36... Kf8 {[%clk 0:01:06.2]} 37. Rg3 {[%clk 0:00:04]}
37... Nh6 {[%clk 0:01:02.1]} 38. Rdg1 {[%clk 0:00:02.6]} 38... Nf5 {[%clk
0:01:02.3]} 39. Rxg7 {[%clk 0:00:01.5]} 39... Nxg7 {[%clk 0:01:01.9]} 40. Nxf6
{[%clk 0:00:01.3]} 40... Bxf6 {[%clk 0:00:51.3]} 41. Qb4+ {[%clk 0:00:01.6]}
41... Kf7 {[%clk 0:00:47.1]} 0-1

[Event "*** Titled Tuesday Blitz"]
[Site "Chess.com"]
[Date "2021.02.09"]
[Round "4"]
[White "LamaChampetre"]
[Black "ChessFighter1975"]
[Result "0-1"]
[WhiteElo "2232"]
[BlackElo "2431"]
[TimeControl "180+1"]
[EndTime "10:39:14 PST"]
[Termination "ChessFighter1975 won on time"]

1. d4 {[%clk 0:03:00.9]} 1... d6 {[%clk 0:02:58.8]} 2. c4 {[%clk 0:03:01.2]}
2... Nf6 {[%clk 0:02:59.1]} 3. Nf3 {[%clk 0:03:00.5]} 3... g6 {[%clk 0:02:59.6]}
4. h3 {[%clk 0:03:00]} 4... Bg7 {[%clk 0:02:59.7]} 5. Nc3 {[%clk 0:03:00.3]}
5... O-O {[%clk 0:02:58]} 6. e4 {[%clk 0:03:00.4]} 6... e5 {[%clk 0:02:53.1]} 7.
d5 {[%clk 0:02:59.9]} 7... Ne8 {[%clk 0:02:51.4]} 8. g4 {[%clk 0:02:50.9]} 8...
f5 {[%clk 0:02:51.1]} 9. gxf5 {[%clk 0:02:47.5]} 9... gxf5 {[%clk 0:02:52]} 10.
Bg5 {[%clk 0:02:47.5]} 10... Nf6 {[%clk 0:02:48.6]} 11. Rg1 {[%clk 0:02:46.6]}
11... Kh8 {[%clk 0:02:48.1]} 12. Be2 {[%clk 0:02:44.6]} 12... Qe8 {[%clk
0:02:38]} 13. exf5 {[%clk 0:02:32.4]} 13... Bxf5 {[%clk 0:02:36.9]} 14. Qd2
{[%clk 0:02:32.3]} 14... Rf7 {[%clk 0:01:56.4]} 15. Bh6 {[%clk 0:02:25.6]} 15...
Qf8 {[%clk 0:01:24.4]} 16. Ng5 {[%clk 0:02:15]} 16... Re7 {[%clk 0:01:11.9]} 17.
Bxg7+ {[%clk 0:02:12.5]} 17... Rxg7 {[%clk 0:01:12.1]} 18. O-O-O {[%clk
0:02:10.7]} 18... Nbd7 {[%clk 0:01:09.6]} 19. Ne6 {[%clk 0:02:07.2]} 19... Bxe6
{[%clk 0:01:08.5]} 20. dxe6 {[%clk 0:02:05.3]} 20... Nc5 {[%clk 0:01:07.1]} 21.
Nd5 {[%clk 0:01:12]} 21... Nxe6 {[%clk 0:01:04.9]} 22. Bg4 {[%clk 0:00:45]}
22... Nd4 {[%clk 0:00:53.8]} 23. Qh6 {[%clk 0:00:26.7]} 23... Nxd5 {[%clk
0:00:50.3]} 24. cxd5 {[%clk 0:00:08.1]} 24... Rg6 {[%clk 0:00:50.7]} 25. Qe3
{[%clk 0:00:05.8]} 25... Qf6 {[%clk 0:00:42.7]} 26. Kb1 {[%clk 0:00:05.1]} 26...
Rf8 {[%clk 0:00:41.8]} 27. f3 {[%clk 0:00:03.8]} 27... Qf4 {[%clk 0:00:41.8]}
28. Qd3 {[%clk 0:00:02.6]} 28... b5 {[%clk 0:00:30.1]} 29. Ka1 {[%clk
0:00:02.1]} 29... a5 {[%clk 0:00:29.6]} 30. h4 {[%clk 0:00:01.3]} 30... b4
{[%clk 0:00:20.3]} 31. h5 {[%clk 0:00:02.2]} 31... Rg5 {[%clk 0:00:20.2]} 32. h6
{[%clk 0:00:01.2]} 32... a4 {[%clk 0:00:20.4]} 0-1

[Event "*** Titled Tuesday Blitz"]
[Site "Chess.com"]
[Date "2021.02.09"]
[Round "4"]
[White "AlexTriapishko"]
[Black "Fighterman91"]
[Result "1-0"]
[WhiteElo "2855"]
[BlackElo "2669"]
[TimeControl "180+1"]
[EndTime "10:39:16 PST"]
[Termination "AlexTriapishko won on time"]

1. d4 {[%clk 0:03:00.9]} 1... Nf6 {[%clk 0:02:59.7]} 2. c4 {[%clk 0:03:01.5]}
2... g6 {[%clk 0:03:00.3]} 3. Nc3 {[%clk 0:03:00.8]} 3... d5 {[%clk 0:03:00.9]}
4. cxd5 {[%clk 0:02:44.5]} 4... Nxd5 {[%clk 0:03:01.8]} 5. e4 {[%clk 0:02:45]}
5... Nxc3 {[%clk 0:03:02.1]} 6. bxc3 {[%clk 0:02:45.9]} 6... Bg7 {[%clk
0:03:02.9]} 7. Bc4 {[%clk 0:02:46.2]} 7... c5 {[%clk 0:03:03.2]} 8. Ne2 {[%clk
0:02:46.8]} 8... O-O {[%clk 0:03:03.8]} 9. Be3 {[%clk 0:02:46.3]} 9... Nc6
{[%clk 0:03:04.1]} 10. h4 {[%clk 0:02:46.8]} 10... cxd4 {[%clk 0:03:00.4]} 11.
cxd4 {[%clk 0:02:46.2]} 11... Qa5+ {[%clk 0:02:59.7]} 12. Kf1 {[%clk 0:02:45]}
12... Qa3 {[%clk 0:02:55.8]} 13. h5 {[%clk 0:02:39.9]} 13... Bg4 {[%clk
0:02:55.2]} 14. hxg6 {[%clk 0:02:39.5]} 14... hxg6 {[%clk 0:02:56.1]} 15. Rh4
{[%clk 0:01:56.7]} 15... Bxe2+ {[%clk 0:02:20.2]} 16. Bxe2 {[%clk 0:01:23.6]}
16... Rad8 {[%clk 0:01:16.7]} 17. d5 {[%clk 0:01:23.4]} 17... e6 {[%clk
0:01:07.6]} 18. Rc1 {[%clk 0:01:00.2]} 18... exd5 {[%clk 0:01:00.9]} 19. exd5
{[%clk 0:01:01.1]} 19... Qxa2 {[%clk 0:00:51.3]} 20. Bc4 {[%clk 0:00:58.3]}
20... Qa5 {[%clk 0:00:51.6]} 21. Bg5 {[%clk 0:00:30.8]} 21... Rd7 {[%clk
0:00:36.2]} 22. Qg4 {[%clk 0:00:30.4]} 22... Ne5 {[%clk 0:00:36.2]} 23. Qh3
{[%clk 0:00:30.8]} 23... Rc7 {[%clk 0:00:20.5]} 24. Rh7 {[%clk 0:00:19.4]} 24...
Rxc4 {[%clk 0:00:11.6]} 25. Rxg7+ {[%clk 0:00:14.5]} 25... Kxg7 {[%clk
0:00:11.2]} 26. Qh6+ {[%clk 0:00:15.4]} 26... Kg8 {[%clk 0:00:11.5]} 27. Rxc4
{[%clk 0:00:15.2]} 27... Qa6 {[%clk 0:00:01.5]} 28. Kg1 {[%clk 0:00:12.6]} 28...
Qxc4 {[%clk 0:00:01.4]} 29. Bf6 {[%clk 0:00:12.7]} 1-0

[Event "*** Titled Tuesday Blitz"]
[Site "Chess.com"]
[Date "2021.02.09"]
[Round "4"]
[White "Ave_Mariia"]
[Black "Margency"]
[Result "1-0"]
[WhiteElo "2493"]
[BlackElo "2641"]
[TimeControl "180+1"]
[EndTime "10:39:19 PST"]
[Termination "Ave_Mariia won by resignation"]

1. d4 {[%clk 0:03:00.9]} 1... d5 {[%clk 0:02:59.1]} 2. c4 {[%clk 0:03:01]} 2...
e6 {[%clk 0:02:59.5]} 3. Nf3 {[%clk 0:03:00.9]} 3... c5 {[%clk 0:02:59.8]} 4.
cxd5 {[%clk 0:03:00]} 4... exd5 {[%clk 0:03:00.7]} 5. g3 {[%clk 0:03:00.5]} 5...
Nf6 {[%clk 0:02:59.8]} 6. Bg2 {[%clk 0:03:00.7]} 6... Nc6 {[%clk 0:02:59.1]} 7.
O-O {[%clk 0:03:00.8]} 7... Be7 {[%clk 0:02:59]} 8. dxc5 {[%clk 0:02:58.5]} 8...
Bxc5 {[%clk 0:02:59.1]} 9. Bg5 {[%clk 0:02:49.7]} 9... O-O {[%clk 0:02:57.8]}
10. Nc3 {[%clk 0:02:47.8]} 10... d4 {[%clk 0:02:57]} 11. Ne4 {[%clk 0:02:45.1]}
11... Be7 {[%clk 0:02:56.6]} 12. Nxf6+ {[%clk 0:02:44.1]} 12... Bxf6 {[%clk
0:02:56.9]} 13. Bxf6 {[%clk 0:02:42.7]} 13... Qxf6 {[%clk 0:02:57.5]} 14. Qd2
{[%clk 0:02:41.8]} 14... Bg4 {[%clk 0:02:53.1]} 15. Rfd1 {[%clk 0:02:38.7]}
15... Rad8 {[%clk 0:02:53]} 16. Rac1 {[%clk 0:02:37.5]} 16... Rfe8 {[%clk
0:02:52.8]} 17. Qd3 {[%clk 0:02:17.8]} 17... Bf5 {[%clk 0:02:45.3]} 18. Qb5
{[%clk 0:02:16.3]} 18... Be4 {[%clk 0:02:44.2]} 19. Ne1 {[%clk 0:01:43.2]} 19...
Bxg2 {[%clk 0:02:10.7]} 20. Nxg2 {[%clk 0:01:44.1]} 20... Rd7 {[%clk 0:01:41.5]}
21. Nf4 {[%clk 0:01:42.4]} 21... Red8 {[%clk 0:01:38.9]} 22. b4 {[%clk
0:01:26.5]} 22... Qe7 {[%clk 0:01:26.4]} 23. a3 {[%clk 0:01:25.2]} 23... d3
{[%clk 0:01:10.5]} 24. exd3 {[%clk 0:01:08.9]} 24... Nd4 {[%clk 0:01:08.1]} 25.
Qc5 {[%clk 0:00:54.9]} 25... Qf6 {[%clk 0:01:00.5]} 26. Qh5 {[%clk 0:00:42.7]}
26... g6 {[%clk 0:00:30.9]} 27. Qg4 {[%clk 0:00:42.7]} 27... Kh8 {[%clk
0:00:28.2]} 28. Re1 {[%clk 0:00:38.9]} 28... Nf5 {[%clk 0:00:24.4]} 29. Rc5
{[%clk 0:00:34.6]} 29... b6 {[%clk 0:00:23.2]} 30. Rc4 {[%clk 0:00:32.1]} 30...
h5 {[%clk 0:00:21.8]} 31. Qd1 {[%clk 0:00:31.5]} 31... h4 {[%clk 0:00:20.3]} 32.
Rce4 {[%clk 0:00:28.9]} 32... Kh7 {[%clk 0:00:19.4]} 33. Qg4 {[%clk 0:00:26]}
33... hxg3 {[%clk 0:00:18.5]} 34. hxg3 {[%clk 0:00:26.9]} 34... Nd4 {[%clk
0:00:16.3]} 35. Kg2 {[%clk 0:00:26.3]} 35... Qf5 {[%clk 0:00:14.8]} 36. Rh1+
{[%clk 0:00:25.4]} 36... Kg8 {[%clk 0:00:15.3]} 37. Qh4 {[%clk 0:00:22.1]} 37...
Qf6 {[%clk 0:00:12.7]} 38. Qxf6 {[%clk 0:00:21.8]} 1-0

[Event "*** Titled Tuesday Blitz"]
[Site "Chess.com"]
[Date "2021.02.09"]
[Round "4"]
[White "Korchmar_Vasiliy"]
[Black "Kaua18"]
[Result "0-1"]
[WhiteElo "2588"]
[BlackElo "2422"]
[TimeControl "180+1"]
[EndTime "10:39:20 PST"]
[Termination "Kaua18 won by resignation"]

1. e4 {[%clk 0:03:00.9]} 1... c5 {[%clk 0:02:58.9]} 2. Nf3 {[%clk 0:03:00.7]}
2... Nc6 {[%clk 0:02:58.8]} 3. d4 {[%clk 0:03:01.1]} 3... cxd4 {[%clk
0:02:59.7]} 4. Nxd4 {[%clk 0:03:01.7]} 4... Nf6 {[%clk 0:03:00.2]} 5. Nc3 {[%clk
0:03:02]} 5... e5 {[%clk 0:02:59.8]} 6. Ndb5 {[%clk 0:03:02]} 6... d6 {[%clk
0:02:59.8]} 7. Bg5 {[%clk 0:03:02.1]} 7... a6 {[%clk 0:03:00.5]} 8. Na3 {[%clk
0:03:02.5]} 8... b5 {[%clk 0:03:01.2]} 9. Bxf6 {[%clk 0:03:02.8]} 9... gxf6
{[%clk 0:03:01]} 10. Nd5 {[%clk 0:03:02.4]} 10... f5 {[%clk 0:03:01.3]} 11. g3
{[%clk 0:03:02.2]} 11... fxe4 {[%clk 0:02:54.2]} 12. Bg2 {[%clk 0:03:01]} 12...
Be6 {[%clk 0:02:51.3]} 13. Bxe4 {[%clk 0:02:54.5]} 13... Bg7 {[%clk 0:02:44.6]}
14. Qh5 {[%clk 0:02:51.3]} 14... Rc8 {[%clk 0:02:39.5]} 15. O-O {[%clk
0:02:45.5]} 15... Ne7 {[%clk 0:02:39.6]} 16. Rad1 {[%clk 0:02:45.8]} 16... Rc5
{[%clk 0:02:31.2]} 17. Qg5 {[%clk 0:01:41.6]} 17... Nxd5 {[%clk 0:02:02.3]} 18.
Qxg7 {[%clk 0:01:40.7]} 18... Qf6 {[%clk 0:02:01]} 19. Qxf6 {[%clk 0:01:30.3]}
19... Nxf6 {[%clk 0:02:01.9]} 20. Bb7 {[%clk 0:01:25.7]} 20... b4 {[%clk
0:01:35.2]} 21. Nb1 {[%clk 0:01:25.8]} 21... Rxc2 {[%clk 0:01:32.4]} 22. Rxd6
{[%clk 0:01:21.2]} 22... Rxb2 {[%clk 0:01:24.9]} 23. Rxa6 {[%clk 0:01:01.8]}
23... Rxa2 {[%clk 0:01:24.1]} 24. Rb6 {[%clk 0:00:38.4]} 24... Rb2 {[%clk
0:01:15.2]} 25. Bd5 {[%clk 0:00:29.7]} 25... Bxd5 {[%clk 0:00:57.3]} 26. Rb8+
{[%clk 0:00:29.1]} 26... Ke7 {[%clk 0:00:57.3]} 27. Rxh8 {[%clk 0:00:30]} 27...
Be4 {[%clk 0:00:45.4]} 28. Rb8 {[%clk 0:00:08.6]} 28... Bxb1 {[%clk 0:00:29.9]}
29. f3 {[%clk 0:00:09.1]} 29... Nd5 {[%clk 0:00:22.5]} 30. Rf2 {[%clk
0:00:09.6]} 30... Rxf2 {[%clk 0:00:17.7]} 31. Kxf2 {[%clk 0:00:10.5]} 31... Bc2
{[%clk 0:00:17.8]} 32. Ke2 {[%clk 0:00:08.3]} 32... b3 {[%clk 0:00:17.8]} 33.
Kd2 {[%clk 0:00:08.8]} 33... Ke6 {[%clk 0:00:16.2]} 34. Rb6+ {[%clk 0:00:06.6]}
34... Nxb6 {[%clk 0:00:16]} 0-1

[Event "*** Titled Tuesday Blitz"]
[Site "Chess.com"]
[Date "2021.02.09"]
[Round "4"]
[White "Loy_Konstantin"]
[Black "bugsbunny444"]
[Result "0-1"]
[WhiteElo "2385"]
[BlackElo "2597"]
[TimeControl "180+1"]
[EndTime "10:39:20 PST"]
[Termination "bugsbunny444 won on time"]

1. e4 {[%clk 0:02:57.2]} 1... c5 {[%clk 0:02:59.6]} 2. Nf3 {[%clk 0:02:57]} 2...
e6 {[%clk 0:03:00.1]} 3. d3 {[%clk 0:02:57.1]} 3... d5 {[%clk 0:02:59.7]} 4.
Nbd2 {[%clk 0:02:56.5]} 4... Nc6 {[%clk 0:03:00.2]} 5. g3 {[%clk 0:02:56.5]}
5... g6 {[%clk 0:03:00.6]} 6. Bg2 {[%clk 0:02:56.7]} 6... Bg7 {[%clk 0:03:01.3]}
7. O-O {[%clk 0:02:57.3]} 7... Nge7 {[%clk 0:03:01.9]} 8. Re1 {[%clk 0:02:56.8]}
8... O-O {[%clk 0:03:02.4]} 9. h4 {[%clk 0:02:53.7]} 9... h6 {[%clk 0:03:01.5]}
10. e5 {[%clk 0:02:53]} 10... b6 {[%clk 0:02:58.7]} 11. Nf1 {[%clk 0:02:53.1]}
11... a5 {[%clk 0:02:57.4]} 12. Bf4 {[%clk 0:02:52.6]} 12... a4 {[%clk
0:02:56.5]} 13. a3 {[%clk 0:02:51.8]} 13... Ra7 {[%clk 0:02:54.4]} 14. Qd2
{[%clk 0:02:51.4]} 14... Kh7 {[%clk 0:02:54.3]} 15. N1h2 {[%clk 0:02:51.4]}
15... Bb7 {[%clk 0:02:50.5]} 16. c3 {[%clk 0:02:34.5]} 16... Nf5 {[%clk
0:02:49.8]} 17. Bh3 {[%clk 0:02:23.9]} 17... d4 {[%clk 0:02:48.4]} 18. c4 {[%clk
0:02:21.6]} 18... Na5 {[%clk 0:02:46.6]} 19. Rad1 {[%clk 0:02:15.7]} 19... Rh8
{[%clk 0:02:09.3]} 20. Bg2 {[%clk 0:01:49.7]} 20... Qa8 {[%clk 0:01:49.9]} 21.
g4 {[%clk 0:01:38.4]} 21... Ne7 {[%clk 0:01:41.8]} 22. Qe2 {[%clk 0:01:19.8]}
22... Kg8 {[%clk 0:01:32.1]} 23. Nf1 {[%clk 0:01:07.1]} 23... h5 {[%clk
0:01:09.6]} 24. gxh5 {[%clk 0:01:01]} 24... Rxh5 {[%clk 0:01:09.4]} 25. Ng3
{[%clk 0:01:01.4]} 25... Rh8 {[%clk 0:01:04]} 26. Bg5 {[%clk 0:01:01.4]} 26...
Kf8 {[%clk 0:00:28.6]} 27. Qf1 {[%clk 0:00:32.6]} 27... Bxf3 {[%clk 0:00:27.6]}
28. Ne4 {[%clk 0:00:14.4]} 28... Bxg2 {[%clk 0:00:27]} 29. Qxg2 {[%clk
0:00:15.3]} 29... Nf5 {[%clk 0:00:27.6]} 30. Qg4 {[%clk 0:00:09.9]} 30... Bxe5
{[%clk 0:00:21.2]} 31. Nf6 {[%clk 0:00:04.2]} 31... Bxf6 {[%clk 0:00:12.7]} 32.
Bxf6 {[%clk 0:00:05.1]} 32... Rh5 {[%clk 0:00:13]} 0-1

[Event "*** Titled Tuesday Blitz"]
[Site "Chess.com"]
[Date "2021.02.09"]
[Round "4"]
[White "CM_rui"]
[Black "esrosenberg"]
[Result "0-1"]
[WhiteElo "2348"]
[BlackElo "2061"]
[TimeControl "180+1"]
[EndTime "10:39:24 PST"]
[Termination "esrosenberg won by checkmate"]

1. e4 {[%clk 0:03:00.9]} 1... e6 {[%clk 0:03:00.2]} 2. d4 {[%clk 0:03:00.6]}
2... d5 {[%clk 0:03:00.8]} 3. Nc3 {[%clk 0:03:00.6]} 3... Bb4 {[%clk 0:03:00.6]}
4. e5 {[%clk 0:03:00.1]} 4... c5 {[%clk 0:03:00.7]} 5. a3 {[%clk 0:03:00.5]}
5... Bxc3+ {[%clk 0:03:00.8]} 6. bxc3 {[%clk 0:03:01.4]} 6... Ne7 {[%clk
0:03:01.2]} 7. f4 {[%clk 0:02:58.9]} 7... Qa5 {[%clk 0:02:45.1]} 8. Qd2 {[%clk
0:02:54.8]} 8... Bd7 {[%clk 0:02:34.4]} 9. Nf3 {[%clk 0:02:54.1]} 9... Ba4
{[%clk 0:02:33.2]} 10. Bd3 {[%clk 0:02:43.1]} 10... Nd7 {[%clk 0:02:09.9]} 11.
O-O {[%clk 0:02:38.6]} 11... Rc8 {[%clk 0:02:07.6]} 12. Qf2 {[%clk 0:02:19.3]}
12... c4 {[%clk 0:01:48.9]} 13. Be2 {[%clk 0:02:19.3]} 13... Bxc2 {[%clk
0:01:46]} 14. a4 {[%clk 0:01:41.9]} 14... Be4 {[%clk 0:01:35.4]} 15. Ba3 {[%clk
0:01:27.1]} 15... Qxc3 {[%clk 0:01:15.4]} 16. Ng5 {[%clk 0:01:21.5]} 16... Nf5
{[%clk 0:01:00]} 17. Nxe4 {[%clk 0:00:45.3]} 17... dxe4 {[%clk 0:00:59.7]} 18.
d5 {[%clk 0:00:38.6]} 18... exd5 {[%clk 0:00:46.8]} 19. Kh1 {[%clk 0:00:35.8]}
19... Qe3 {[%clk 0:00:36.3]} 20. Qe1 {[%clk 0:00:33.3]} 20... Nc5 {[%clk
0:00:28.5]} 21. g4 {[%clk 0:00:28.5]} 21... Nd4 {[%clk 0:00:18.5]} 22. Ra2
{[%clk 0:00:22.3]} 22... Nxe2 {[%clk 0:00:16.2]} 23. Rxe2 {[%clk 0:00:23.2]}
23... Qxa3 {[%clk 0:00:15]} 24. f5 {[%clk 0:00:22.4]} 24... O-O {[%clk
0:00:14.7]} 25. f6 {[%clk 0:00:22.4]} 25... Qh3 {[%clk 0:00:13.1]} 26. Rg2
{[%clk 0:00:18.4]} 26... Nd3 {[%clk 0:00:11.7]} 27. Qd2 {[%clk 0:00:14.8]} 27...
c3 {[%clk 0:00:10.6]} 28. Qg5 {[%clk 0:00:14.7]} 28... g6 {[%clk 0:00:11.1]} 29.
e6 {[%clk 0:00:13.5]} 29... c2 {[%clk 0:00:10]} 30. exf7+ {[%clk 0:00:13.1]}
30... Rxf7 {[%clk 0:00:09.7]} 31. Rgg1 {[%clk 0:00:06.8]} 31... d4 {[%clk
0:00:07.9]} 32. Ra1 {[%clk 0:00:02.1]} 32... c1=Q {[%clk 0:00:07.7]} 33. Raxc1
{[%clk 0:00:02.1]} 33... Nf2# {[%clk 0:00:07.4]} 0-1